[Event "Titled Tuesday Blitz January 11 2022"]
[White "Carnicelli, Valerio"]
[Black "Sarana, Alexey"]
[WhiteFideId "856185"]
[BlackFideId "24133795"]
[WhiteElo "2627"]
[BlackElo "3073"]
[Result "0-1"]
[Round "02"]
[TimeControl "180+1"]
[Date "2022.01.11"]
[WhiteClock "0:01:13"]
[BlackClock "0:01:59"]

1. e4 {[%clk 0:03:00]}  c5 {[%clk 0:02:54]} 2. Nf3 {[%clk 0:03:00]}  d6 {[%clk 0:02:55]} 3. d4 {[%clk 0:03:01]}  cxd4 {[%clk 0:02:54]} 4. Nxd4 {[%clk 0:03:01]}  Nf6 {[%clk 0:02:55]} 5. Nc3 {[%clk 0:03:02]}  a6 {[%clk 0:02:56]} 6. f3 {[%clk 0:03:02]}  e5 {[%clk 0:02:54]} 7. Nb3 {[%clk 0:03:03]}  Be6 {[%clk 0:02:54]} 8. Be3 {[%clk 0:03:03]}  Nbd7 {[%clk 0:02:54]} 9. Qd2 {[%clk 0:03:04]}  b5 {[%clk 0:02:54]} 10. O-O-O {[%clk 0:03:04]}  Be7 {[%clk 0:02:51]} 11. g4 {[%clk 0:03:04]}  b4 {[%clk 0:02:52]} 12. Nd5 {[%clk 0:03:04]}  Bxd5 {[%clk 0:02:52]} 13. exd5 {[%clk 0:03:04]}  Nb6 {[%clk 0:02:53]} 14. Qxb4 {[%clk 0:03:02]}  Nfxd5 {[%clk 0:02:48]} 15. Bxb6 {[%clk 0:02:56]}  Nxb6 {[%clk 0:02:49]} 16. Kb1 {[%clk 0:02:54]}  O-O {[%clk 0:02:48]} 17. h4 {[%clk 0:02:51]}  d5 {[%clk 0:02:46]} 18. Qe1 {[%clk 0:02:48]}  Qc7 {[%clk 0:02:44]} 19. Bd3 {[%clk 0:02:46]}  a5 {[%clk 0:02:42]} 20. g5 {[%clk 0:02:40]}  a4 {[%clk 0:02:41]} 21. Nc1 {[%clk 0:02:41]}  a3 {[%clk 0:02:40]} 22. b3 {[%clk 0:02:37]}  Rfb8 {[%clk 0:02:39]} 23. g6 {[%clk 0:02:22]}  hxg6 {[%clk 0:02:30]} 24. h5 {[%clk 0:02:23]}  g5 {[%clk 0:02:30]} 25. h6 {[%clk 0:02:23]}  g6 {[%clk 0:02:29]} 26. Ne2 {[%clk 0:02:07]}  Bf6 {[%clk 0:02:26]} 27. Rc1 {[%clk 0:01:48]}  Na4 {[%clk 0:02:20]} 28. Rg1 {[%clk 0:01:39]}  e4 {[%clk 0:02:00]} 29. fxe4 {[%clk 0:01:39]}  dxe4 {[%clk 0:02:01]} 30. h7+ {[%clk 0:01:19]}  Kxh7 {[%clk 0:01:59]} 31. Bxe4 {[%clk 0:01:13]}  Qe5 {[%clk 0:01:59]} 0-1


[Site "https://www.chess.com"]

[Event "Titled Tuesday Blitz January 11 2022"]
[White "Chigaev, Maksim"]
[Black "Aloma Vidal, Robert"]
[WhiteFideId "4108116"]
[BlackFideId "2260409"]
[WhiteElo "2502"]
[BlackElo "2435"]
[Result "1-0"]
[Round "02"]
[TimeControl "180+1"]
[Date "2022.01.11"]
[WhiteClock "0:01:22"]
[BlackClock "0:00:18"]

1. d4 {[%clk 0:03:00]}  d5 {[%clk 0:02:59]} 2. Nf3 {[%clk 0:03:00]}  Bf5 {[%clk 0:02:58]} 3. Bf4 {[%clk 0:02:57]}  e6 {[%clk 0:02:58]} 4. e3 {[%clk 0:02:57]}  Bd6 {[%clk 0:02:54]} 5. Bg3 {[%clk 0:02:56]}  Nf6 {[%clk 0:02:54]} 6. c4 {[%clk 0:02:55]}  c6 {[%clk 0:02:50]} 7. Qb3 {[%clk 0:02:55]}  b6 {[%clk 0:02:00]} 8. Nc3 {[%clk 0:02:37]}  O-O {[%clk 0:01:59]} 9. Ne5 {[%clk 0:02:34]}  c5 {[%clk 0:01:46]} 10. cxd5 {[%clk 0:02:26]}  cxd4 {[%clk 0:01:46]} 11. exd4 {[%clk 0:02:26]}  exd5 {[%clk 0:01:41]} 12. Be2 {[%clk 0:02:26]}  Be6 {[%clk 0:01:18]} 13. O-O {[%clk 0:02:12]}  Ne4 {[%clk 0:01:14]} 14. Nxe4 {[%clk 0:02:08]}  dxe4 {[%clk 0:01:14]} 15. d5 {[%clk 0:02:08]}  Bf5 {[%clk 0:01:06]} 16. Rfd1 {[%clk 0:02:08]}  Qf6 {[%clk 0:00:59]} 17. Nc4 {[%clk 0:01:49]}  Bxg3 {[%clk 0:00:57]} 18. hxg3 {[%clk 0:01:48]}  Nd7 {[%clk 0:00:58]} 19. Rac1 {[%clk 0:01:46]}  Rac8 {[%clk 0:00:57]} 20. Qa3 {[%clk 0:01:40]}  a5 {[%clk 0:00:55]} 21. Qd6 {[%clk 0:01:37]}  Rxc4 {[%clk 0:00:50]} 22. Qxf6 {[%clk 0:01:37]}  Nxf6 {[%clk 0:00:37]} 23. Rxc4 {[%clk 0:01:32]}  Rd8 {[%clk 0:00:37]} 24. Rc6 {[%clk 0:01:26]}  Nd7 {[%clk 0:00:37]} 25. g4 {[%clk 0:01:22]}  Bg6 {[%clk 0:00:37]} 26. Rd6 {[%clk 0:01:22]}  Kf8 {[%clk 0:00:38]} 27. Bb5 {[%clk 0:01:21]}  Ke7 {[%clk 0:00:38]} 28. Rxd7+ {[%clk 0:01:21]}  Rxd7 {[%clk 0:00:39]} 29. Bxd7 {[%clk 0:01:21]}  Kxd7 {[%clk 0:00:40]} 30. d6 {[%clk 0:01:22]}  f6 {[%clk 0:00:38]} 31. a3 {[%clk 0:01:18]}  Bf7 {[%clk 0:00:38]} 32. Rd4 {[%clk 0:01:18]}  Be6 {[%clk 0:00:36]} 33. f3 {[%clk 0:01:17]}  exf3 {[%clk 0:00:27]} 34. gxf3 {[%clk 0:01:18]}  f5 {[%clk 0:00:26]} 35. g5 {[%clk 0:01:17]}  h6 {[%clk 0:00:26]} 36. f4 {[%clk 0:01:16]}  hxg5 {[%clk 0:00:25]} 37. fxg5 {[%clk 0:01:17]}  g6 {[%clk 0:00:24]} 38. Kf2 {[%clk 0:01:18]}  Kc6 {[%clk 0:00:25]} 39. Ke3 {[%clk 0:01:19]}  Bd7 {[%clk 0:00:23]} 40. b4 {[%clk 0:01:20]}  axb4 {[%clk 0:00:23]} 41. axb4 {[%clk 0:01:21]}  Be6 {[%clk 0:00:20]} 42. Kf4 {[%clk 0:01:21]}  Kd7 {[%clk 0:00:19]} 43. Ke5 {[%clk 0:01:22]}  Bb3 {[%clk 0:00:18]} 44. Rd3 {[%clk 0:01:20]}  Bc2 {[%clk 0:00:17]} 45. Rc3 {[%clk 0:01:21]}  Be4 {[%clk 0:00:18]} 46. Rc7+ {[%clk 0:01:22]}  Kd8 {[%clk 0:00:18]} 47. Ke6 {[%clk 0:01:22]} 1-0


[Site "https://www.chess.com"]

[Event "Titled Tuesday Blitz January 11 2022"]
[White "Deac, Bogdan-Daniel"]
[Black "Araujo Sanchez, Josue"]
[WhiteFideId "1226380"]
[BlackFideId "6416896"]
[WhiteElo "2646"]
[BlackElo "2357"]
[Result "0-1"]
[Round "02"]
[TimeControl "180+1"]
[Date "2022.01.11"]
[WhiteClock "0:00:01"]
[BlackClock "0:00:38"]

1. e4 {[%clk 0:03:00]}  c5 {[%clk 0:02:59]} 2. Nf3 {[%clk 0:03:01]}  d6 {[%clk 0:02:59]} 3. d4 {[%clk 0:03:01]}  cxd4 {[%clk 0:02:59]} 4. Nxd4 {[%clk 0:03:02]}  Nf6 {[%clk 0:02:59]} 5. Nc3 {[%clk 0:03:03]}  a6 {[%clk 0:02:59]} 6. Be2 {[%clk 0:03:01]}  Nc6 {[%clk 0:02:59]} 7. Be3 {[%clk 0:02:57]}  e5 {[%clk 0:02:57]} 8. Nb3 {[%clk 0:02:55]}  Be7 {[%clk 0:02:56]} 9. g4 {[%clk 0:02:52]}  h6 {[%clk 0:02:54]} 10. Rg1 {[%clk 0:02:41]}  Be6 {[%clk 0:02:54]} 11. Bf3 {[%clk 0:02:14]}  Rc8 {[%clk 0:02:46]} 12. Nd5 {[%clk 0:02:00]}  Bxd5 {[%clk 0:02:39]} 13. exd5 {[%clk 0:02:00]}  Na5 {[%clk 0:02:25]} 14. Nd2 {[%clk 0:01:41]}  Qc7 {[%clk 0:02:17]} 15. c3 {[%clk 0:01:37]}  Nc4 {[%clk 0:02:15]} 16. Nxc4 {[%clk 0:01:36]}  Qxc4 {[%clk 0:02:14]} 17. Qb3 {[%clk 0:01:15]}  Qxb3 {[%clk 0:02:03]} 18. axb3 {[%clk 0:01:15]}  e4 {[%clk 0:02:03]} 19. Bh1 {[%clk 0:01:14]}  Nxd5 {[%clk 0:02:02]} 20. Bd4 {[%clk 0:01:14]}  Nf6 {[%clk 0:02:01]} 21. Bxf6 {[%clk 0:01:11]}  Bxf6 {[%clk 0:02:00]} 22. Bxe4 {[%clk 0:01:11]}  Rc7 {[%clk 0:01:57]} 23. f4 {[%clk 0:00:56]}  Kd7 {[%clk 0:01:54]} 24. O-O-O {[%clk 0:00:49]}  Re8 {[%clk 0:01:54]} 25. Rge1 {[%clk 0:00:47]}  g6 {[%clk 0:01:46]} 26. Kc2 {[%clk 0:00:31]}  Re7 {[%clk 0:01:39]} 27. b4 {[%clk 0:00:23]}  Bh4 {[%clk 0:01:32]} 28. Re2 {[%clk 0:00:23]}  Rc4 {[%clk 0:01:31]} 29. Kd3 {[%clk 0:00:20]}  Rc7 {[%clk 0:01:19]} 30. Rdd2 {[%clk 0:00:13]}  Bf6 {[%clk 0:01:18]} 31. Bd5 {[%clk 0:00:09]}  Ke8 {[%clk 0:01:13]} 32. Rc2 {[%clk 0:00:04]}  b6 {[%clk 0:01:10]} 33. c4 {[%clk 0:00:03]}  Rxe2 {[%clk 0:01:06]} 34. Rxe2+ {[%clk 0:00:03]}  Re7 {[%clk 0:01:06]} 35. Rc2 {[%clk 0:00:03]}  Rc7 {[%clk 0:00:58]} 36. b3 {[%clk 0:00:02]}  Bh4 {[%clk 0:00:53]} 37. Ra2 {[%clk 0:00:02]}  Ra7 {[%clk 0:00:52]} 38. Ke4 {[%clk 0:00:02]}  Be1 {[%clk 0:00:51]} 39. Bc6+ {[%clk 0:00:02]}  Ke7 {[%clk 0:00:49]} 40. b5 {[%clk 0:00:02]}  a5 {[%clk 0:00:48]} 41. Kd5 {[%clk 0:00:02]}  Bb4 {[%clk 0:00:48]} 42. Re2+ {[%clk 0:00:02]}  Kf6 {[%clk 0:00:47]} 43. h4 {[%clk 0:00:02]}  Bc5 {[%clk 0:00:42]} 44. Re4 {[%clk 0:00:01]}  h5 {[%clk 0:00:41]} 45. gxh5 {[%clk 0:00:01]}  gxh5 {[%clk 0:00:41]} 46. Re8 {[%clk 0:00:01]}  Re7 {[%clk 0:00:39]} 47. Rh8 {[%clk 0:00:01]}  Re3 {[%clk 0:00:38]} 0-1


[Site "https://www.chess.com"]

[Event "Titled Tuesday Blitz January 11 2022"]
[White "Hakobyan, Aram"]
[Black "Belyakov, Bogdan"]
[WhiteFideId "13306677"]
[BlackFideId "24104795"]
[WhiteElo "2557"]
[BlackElo "2407"]
[Result "1-0"]
[Round "02"]
[TimeControl "180+1"]
[Date "2022.01.11"]
[WhiteClock "0:00:21"]
[BlackClock "0:00:13"]

1. e4 {[%clk 0:03:00]}  e5 {[%clk 0:02:59]} 2. Nf3 {[%clk 0:03:00]}  Nc6 {[%clk 0:03:00]} 3. d4 {[%clk 0:02:55]}  exd4 {[%clk 0:03:00]} 4. Nxd4 {[%clk 0:02:56]}  Nf6 {[%clk 0:03:00]} 5. Nc3 {[%clk 0:02:54]}  Bb4 {[%clk 0:03:00]} 6. Nxc6 {[%clk 0:02:54]}  bxc6 {[%clk 0:03:00]} 7. Bd3 {[%clk 0:02:54]}  d5 {[%clk 0:03:00]} 8. exd5 {[%clk 0:02:55]}  cxd5 {[%clk 0:03:01]} 9. O-O {[%clk 0:02:55]}  O-O {[%clk 0:03:00]} 10. h3 {[%clk 0:02:55]}  c6 {[%clk 0:02:52]} 11. Qf3 {[%clk 0:02:55]}  Re8 {[%clk 0:02:52]} 12. Bg5 {[%clk 0:02:54]}  h6 {[%clk 0:02:47]} 13. Bh4 {[%clk 0:02:40]}  Qe7 {[%clk 0:02:42]} 14. Ne2 {[%clk 0:02:22]}  Bd6 {[%clk 0:02:38]} 15. Bg3 {[%clk 0:02:08]}  Bxg3 {[%clk 0:02:19]} 16. Nxg3 {[%clk 0:02:00]}  Qe5 {[%clk 0:02:17]} 17. b3 {[%clk 0:01:55]}  a5 {[%clk 0:02:12]} 18. a4 {[%clk 0:01:31]}  Ba6 {[%clk 0:02:09]} 19. Bxa6 {[%clk 0:01:30]}  Rxa6 {[%clk 0:02:09]} 20. Kh2 {[%clk 0:01:24]}  Raa8 {[%clk 0:02:03]} 21. Rad1 {[%clk 0:01:19]}  Re6 {[%clk 0:01:56]} 22. Qf5 {[%clk 0:01:15]}  Rae8 {[%clk 0:01:44]} 23. Qxe5 {[%clk 0:01:13]}  Rxe5 {[%clk 0:01:45]} 24. Rd3 {[%clk 0:01:13]}  c5 {[%clk 0:01:34]} 25. Rfd1 {[%clk 0:01:13]}  Rc8 {[%clk 0:01:32]} 26. Kg1 {[%clk 0:01:10]}  c4 {[%clk 0:01:32]} 27. Rc3 {[%clk 0:01:09]}  g6 {[%clk 0:01:28]} 28. Nf1 {[%clk 0:01:02]}  Ne4 {[%clk 0:01:22]} 29. Re3 {[%clk 0:01:01]}  cxb3 {[%clk 0:01:22]} 30. cxb3 {[%clk 0:01:02]}  Rf5 {[%clk 0:01:17]} 31. f3 {[%clk 0:00:50]}  Nc3 {[%clk 0:01:12]} 32. Rdd3 {[%clk 0:00:49]}  Na2 {[%clk 0:01:12]} 33. Ng3 {[%clk 0:00:48]}  Rf6 {[%clk 0:01:06]} 34. Rxd5 {[%clk 0:00:47]}  Ra6 {[%clk 0:01:02]} 35. Ne4 {[%clk 0:00:43]}  Kg7 {[%clk 0:01:00]} 36. Nd6 {[%clk 0:00:41]}  Nb4 {[%clk 0:00:41]} 37. Rd1 {[%clk 0:00:37]}  Rcc6 {[%clk 0:00:34]} 38. Ne8+ {[%clk 0:00:36]}  Kf8 {[%clk 0:00:31]} 39. Rd8 {[%clk 0:00:36]}  Rc1+ {[%clk 0:00:17]} 40. Kh2 {[%clk 0:00:36]}  Rac6 {[%clk 0:00:17]} 41. Nd6+ {[%clk 0:00:20]}  Kg7 {[%clk 0:00:18]} 42. Re7 {[%clk 0:00:21]}  Rc7 {[%clk 0:00:14]} 43. Rxc7 {[%clk 0:00:21]}  Rxc7 {[%clk 0:00:13]} 44. Ne8+ {[%clk 0:00:21]} 1-0


[Site "https://www.chess.com"]

[Event "Titled Tuesday Blitz January 11 2022"]
[White "Kalashian, David"]
[Black "Abdrlauf, Elham"]
[WhiteFideId "13302418"]
[BlackFideId "1533533"]
[WhiteElo "2490"]
[BlackElo "2334"]
[Result "1/2-1/2"]
[Round "02"]
[TimeControl "180+1"]
[Date "2022.01.11"]
[WhiteClock "0:00:13"]
[BlackClock "0:00:40"]

1. d4 {[%clk 0:02:59]}  Nf6 {[%clk 0:02:58]} 2. c4 {[%clk 0:02:57]}  e6 {[%clk 0:02:59]} 3. Nf3 {[%clk 0:02:57]}  d5 {[%clk 0:02:59]} 4. Nc3 {[%clk 0:02:56]}  dxc4 {[%clk 0:03:00]} 5. e3 {[%clk 0:02:56]}  a6 {[%clk 0:02:59]} 6. a4 {[%clk 0:02:56]}  c5 {[%clk 0:02:57]} 7. Bxc4 {[%clk 0:02:56]}  Nc6 {[%clk 0:02:58]} 8. O-O {[%clk 0:02:56]}  Be7 {[%clk 0:02:58]} 9. Qe2 {[%clk 0:02:55]}  cxd4 {[%clk 0:02:57]} 10. Rd1 {[%clk 0:02:55]}  O-O {[%clk 0:02:56]} 11. exd4 {[%clk 0:02:55]}  Nb4 {[%clk 0:02:52]} 12. Bg5 {[%clk 0:02:47]}  Bd7 {[%clk 0:02:47]} 13. Ne5 {[%clk 0:02:46]}  Be8 {[%clk 0:02:37]} 14. Bxf6 {[%clk 0:02:20]}  Bxf6 {[%clk 0:02:38]} 15. d5 {[%clk 0:02:21]}  exd5 {[%clk 0:02:35]} 16. Nxd5 {[%clk 0:02:20]}  Nxd5 {[%clk 0:02:35]} 17. Bxd5 {[%clk 0:02:05]}  Qe7 {[%clk 0:02:29]} 18. Re1 {[%clk 0:01:58]}  Rd8 {[%clk 0:02:23]} 19. Bf3 {[%clk 0:01:52]}  Qb4 {[%clk 0:02:07]} 20. Ng4 {[%clk 0:01:25]}  Qxb2 {[%clk 0:01:58]} 21. Nxf6+ {[%clk 0:01:22]}  Qxf6 {[%clk 0:01:59]} 22. Bxb7 {[%clk 0:01:20]}  a5 {[%clk 0:01:56]} 23. Bf3 {[%clk 0:01:13]}  Bc6 {[%clk 0:01:37]} 24. Bxc6 {[%clk 0:00:51]}  Qxc6 {[%clk 0:01:38]} 25. Qb5 {[%clk 0:00:47]}  Qxb5 {[%clk 0:01:00]} 26. axb5 {[%clk 0:00:48]}  Ra8 {[%clk 0:01:01]} 27. b6 {[%clk 0:00:45]}  Rfb8 {[%clk 0:01:00]} 28. Reb1 {[%clk 0:00:45]}  Ra6 {[%clk 0:00:57]} 29. b7 {[%clk 0:00:44]}  Ra7 {[%clk 0:00:57]} 30. g3 {[%clk 0:00:38]}  g6 {[%clk 0:00:56]} 31. Rb5 {[%clk 0:00:33]}  a4 {[%clk 0:00:56]} 32. Rb4 {[%clk 0:00:33]}  a3 {[%clk 0:00:57]} 33. Rb3 {[%clk 0:00:33]}  a2 {[%clk 0:00:57]} 34. Rb2 {[%clk 0:00:34]}  Rbxb7 {[%clk 0:00:58]} 35. Rxb7 {[%clk 0:00:34]}  Rxb7 {[%clk 0:00:59]} 36. Rxa2 {[%clk 0:00:34]}  Kg7 {[%clk 0:01:00]} 37. Kg2 {[%clk 0:00:35]}  Rb6 {[%clk 0:01:00]} 38. h4 {[%clk 0:00:35]}  h5 {[%clk 0:01:01]} 39. Re2 {[%clk 0:00:34]}  Kf6 {[%clk 0:01:01]} 40. Re3 {[%clk 0:00:35]}  Rb5 {[%clk 0:01:01]} 41. Rf3+ {[%clk 0:00:35]}  Kg7 {[%clk 0:01:02]} 42. Re3 {[%clk 0:00:36]}  Rc5 {[%clk 0:01:02]} 43. Rf3 {[%clk 0:00:36]}  Re5 {[%clk 0:01:03]} 44. Rd3 {[%clk 0:00:36]}  f6 {[%clk 0:01:02]} 45. Rf3 {[%clk 0:00:36]}  Kf7 {[%clk 0:01:02]} 46. Rd3 {[%clk 0:00:36]}  Ke6 {[%clk 0:01:02]} 47. Ra3 {[%clk 0:00:37]}  Kf5 {[%clk 0:01:03]} 48. Ra4 {[%clk 0:00:36]}  Re4 {[%clk 0:00:59]} 49. Ra5+ {[%clk 0:00:35]}  Re5 {[%clk 0:01:00]} 50. Ra4 {[%clk 0:00:35]}  Rd5 {[%clk 0:01:00]} 51. Rb4 {[%clk 0:00:34]}  Ke5 {[%clk 0:01:01]} 52. Ra4 {[%clk 0:00:34]}  Rd4 {[%clk 0:01:00]} 53. Ra5+ {[%clk 0:00:34]}  Ke6 {[%clk 0:01:00]} 54. Ra6+ {[%clk 0:00:33]}  Rd6 {[%clk 0:01:00]} 55. Ra5 {[%clk 0:00:32]}  Kf7 {[%clk 0:01:01]} 56. Ra4 {[%clk 0:00:32]}  Kg7 {[%clk 0:01:02]} 57. Ra3 {[%clk 0:00:31]}  Kh6 {[%clk 0:01:01]} 58. Rf3 {[%clk 0:00:31]}  g5 {[%clk 0:01:02]} 59. hxg5+ {[%clk 0:00:31]}  fxg5 {[%clk 0:01:03]} 60. Rb3 {[%clk 0:00:31]}  Kg6 {[%clk 0:01:03]} 61. Rb5 {[%clk 0:00:31]}  Re6 {[%clk 0:01:04]} 62. Rc5 {[%clk 0:00:31]}  Kf6 {[%clk 0:01:04]} 63. Rb5 {[%clk 0:00:31]}  Re5 {[%clk 0:01:05]} 64. Rb6+ {[%clk 0:00:30]}  Kf5 {[%clk 0:01:05]} 65. Rb8 {[%clk 0:00:28]}  Rc5 {[%clk 0:01:03]} 66. Rf8+ {[%clk 0:00:27]}  Kg6 {[%clk 0:01:04]} 67. Rg8+ {[%clk 0:00:28]}  Kf7 {[%clk 0:01:04]} 68. Rh8 {[%clk 0:00:28]}  g4 {[%clk 0:01:03]} 69. Rh7+ {[%clk 0:00:27]}  Kg6 {[%clk 0:01:03]} 70. Ra7 {[%clk 0:00:27]}  Rf5 {[%clk 0:01:03]} 71. Ra6+ {[%clk 0:00:26]}  Kg5 {[%clk 0:01:04]} 72. Ra8 {[%clk 0:00:26]}  Rf6 {[%clk 0:01:05]} 73. Rg8+ {[%clk 0:00:26]}  Rg6 {[%clk 0:01:06]} 74. Ra8 {[%clk 0:00:27]}  Kh6 {[%clk 0:01:06]} 75. Ra5 {[%clk 0:00:27]}  Rf6 {[%clk 0:01:04]} 76. Rb5 {[%clk 0:00:26]}  Kg6 {[%clk 0:01:05]} 77. Rc5 {[%clk 0:00:26]}  Rf5 {[%clk 0:01:06]} 78. Rc6+ {[%clk 0:00:27]}  Kg5 {[%clk 0:01:06]} 79. Rc8 {[%clk 0:00:27]}  Ra5 {[%clk 0:01:06]} 80. Rg8+ {[%clk 0:00:26]}  Kf5 {[%clk 0:01:06]} 81. Rf8+ {[%clk 0:00:26]}  Ke4 {[%clk 0:01:06]} 82. Rf4+ {[%clk 0:00:26]}  Kd3 {[%clk 0:01:06]} 83. Rf8 {[%clk 0:00:23]}  Re5 {[%clk 0:01:06]} 84. Rf4 {[%clk 0:00:21]}  Ke2 {[%clk 0:01:06]} 85. Rf8 {[%clk 0:00:20]}  Rb5 {[%clk 0:01:04]} 86. Rf4 {[%clk 0:00:18]}  Kd3 {[%clk 0:01:02]} 87. Rf8 {[%clk 0:00:17]}  Ke4 {[%clk 0:01:02]} 88. Rf4+ {[%clk 0:00:17]}  Ke5 {[%clk 0:01:03]} 89. Rf8 {[%clk 0:00:18]}  Rd5 {[%clk 0:01:01]} 90. Rf7 {[%clk 0:00:18]}  Ke6 {[%clk 0:01:00]} 91. Rf4 {[%clk 0:00:18]}  Ra5 {[%clk 0:01:00]} 92. Rf8 {[%clk 0:00:18]}  Rb5 {[%clk 0:00:57]} 93. Rf4 {[%clk 0:00:18]}  Rf5 {[%clk 0:00:57]} 94. Re4+ {[%clk 0:00:16]}  Kf6 {[%clk 0:00:58]} 95. Ra4 {[%clk 0:00:17]}  Re5 {[%clk 0:00:58]} 96. Rf4+ {[%clk 0:00:17]}  Kg5 {[%clk 0:00:58]} 97. Ra4 {[%clk 0:00:18]}  h4 {[%clk 0:00:59]} 98. gxh4+ {[%clk 0:00:17]}  Kxh4 {[%clk 0:01:00]} 99. f3 {[%clk 0:00:18]}  Re2+ {[%clk 0:00:58]} 100. Kf1 {[%clk 0:00:18]}  Rb2 {[%clk 0:00:54]} 101. Rxg4+ {[%clk 0:00:18]}  Kh3 {[%clk 0:00:54]} 102. Rg8 {[%clk 0:00:18]}  Ra2 {[%clk 0:00:54]} 103. Ke1 {[%clk 0:00:18]}  Rb2 {[%clk 0:00:54]} 104. Kf1 {[%clk 0:00:18]}  Ra2 {[%clk 0:00:54]} 105. Rg7 {[%clk 0:00:15]}  Rc2 {[%clk 0:00:54]} 106. f4 {[%clk 0:00:14]}  Rc4 {[%clk 0:00:53]} 107. Rf7 {[%clk 0:00:14]}  Kg4 {[%clk 0:00:46]} 108. Ke2 {[%clk 0:00:14]}  Rc3 {[%clk 0:00:46]} 109. Kd2 {[%clk 0:00:13]}  Ra3 {[%clk 0:00:47]} 110. Ke2 {[%clk 0:00:13]}  Rh3 {[%clk 0:00:42]} 111. f5 {[%clk 0:00:13]}  Kf4 {[%clk 0:00:41]} 112. Rf8 {[%clk 0:00:12]}  Ra3 {[%clk 0:00:40]} 113. f6 {[%clk 0:00:11]}  Kf5 {[%clk 0:00:40]} 114. Kf2 {[%clk 0:00:11]}  Rb3 {[%clk 0:00:40]} 115. Ke2 {[%clk 0:00:11]}  Rc3 {[%clk 0:00:40]} 116. Kd2 {[%clk 0:00:11]}  Rh3 {[%clk 0:00:40]} 117. f7 {[%clk 0:00:11]}  Kf6 {[%clk 0:00:40]} 118. Re8 {[%clk 0:00:12]}  Kxf7 {[%clk 0:00:40]} 119. Re3 {[%clk 0:00:13]}  Rxe3 {[%clk 0:00:40]} 120. Kxe3 {[%clk 0:00:13]} 1/2-1/2


[Site "https://www.chess.com"]

[Event "Titled Tuesday Blitz January 11 2022"]
[White "Kravtsiv, Martyn"]
[Black "Potapova, Margarita"]
[WhiteFideId "14113147"]
[BlackFideId "14126869"]
[WhiteElo "2694"]
[BlackElo "2209"]
[Result "1-0"]
[Round "02"]
[TimeControl "180+1"]
[Date "2022.01.11"]
[WhiteClock "0:00:25"]
[BlackClock "0:00:10"]

1. e4 {[%clk 0:03:00]}  c5 {[%clk 0:02:59]} 2. Nf3 {[%clk 0:03:00]}  d6 {[%clk 0:03:00]} 3. Bb5+ {[%clk 0:02:59]}  Nd7 {[%clk 0:03:00]} 4. d4 {[%clk 0:02:58]}  cxd4 {[%clk 0:03:01]} 5. Qxd4 {[%clk 0:02:57]}  a6 {[%clk 0:03:01]} 6. Bxd7+ {[%clk 0:02:57]}  Bxd7 {[%clk 0:03:02]} 7. O-O {[%clk 0:02:57]}  e5 {[%clk 0:03:00]} 8. Qd3 {[%clk 0:02:56]}  h6 {[%clk 0:03:00]} 9. a4 {[%clk 0:02:48]}  Nf6 {[%clk 0:02:59]} 10. Re1 {[%clk 0:02:48]}  Be7 {[%clk 0:02:59]} 11. a5 {[%clk 0:02:48]}  O-O {[%clk 0:02:59]} 12. c4 {[%clk 0:02:43]}  Rc8 {[%clk 0:02:49]} 13. Nc3 {[%clk 0:02:33]}  Be6 {[%clk 0:02:45]} 14. b3 {[%clk 0:02:32]}  b6 {[%clk 0:02:31]} 15. axb6 {[%clk 0:01:58]}  Qxb6 {[%clk 0:02:32]} 16. Rb1 {[%clk 0:01:57]}  Qb7 {[%clk 0:02:27]} 17. h3 {[%clk 0:01:55]}  Nd7 {[%clk 0:02:04]} 18. Be3 {[%clk 0:01:54]}  Nb8 {[%clk 0:01:20]} 19. Nd5 {[%clk 0:01:34]}  f5 {[%clk 0:01:08]} 20. Rbd1 {[%clk 0:01:17]}  Bd8 {[%clk 0:00:57]} 21. exf5 {[%clk 0:01:06]}  Bxf5 {[%clk 0:00:56]} 22. Qc3 {[%clk 0:01:06]}  Nc6 {[%clk 0:00:53]} 23. Bc1 {[%clk 0:01:06]}  Rb8 {[%clk 0:00:49]} 24. Re3 {[%clk 0:01:04]}  Ba5 {[%clk 0:00:42]} 25. Qb2 {[%clk 0:01:00]}  Nb4 {[%clk 0:00:34]} 26. Nh4 {[%clk 0:00:54]}  Bh7 {[%clk 0:00:34]} 27. Rg3 {[%clk 0:00:51]}  Nxd5 {[%clk 0:00:32]} 28. Rxd5 {[%clk 0:00:50]}  Bb6 {[%clk 0:00:32]} 29. Be3 {[%clk 0:00:45]}  Bd8 {[%clk 0:00:27]} 30. Bxh6 {[%clk 0:00:44]}  Bxh4 {[%clk 0:00:13]} 31. Rxg7+ {[%clk 0:00:43]}  Qxg7 {[%clk 0:00:14]} 32. Bxg7 {[%clk 0:00:44]}  Kxg7 {[%clk 0:00:15]} 33. Rxd6 {[%clk 0:00:39]}  Bf6 {[%clk 0:00:15]} 34. Rxa6 {[%clk 0:00:36]}  e4 {[%clk 0:00:15]} 35. Qd2 {[%clk 0:00:33]}  Rbd8 {[%clk 0:00:15]} 36. Rd6 {[%clk 0:00:30]}  Rxd6 {[%clk 0:00:14]} 37. Qxd6 {[%clk 0:00:31]}  Rd8 {[%clk 0:00:15]} 38. Qc7+ {[%clk 0:00:30]}  Kg8 {[%clk 0:00:14]} 39. g3 {[%clk 0:00:29]}  Rd2 {[%clk 0:00:12]} 40. Qc8+ {[%clk 0:00:27]}  Kg7 {[%clk 0:00:12]} 41. Qc7+ {[%clk 0:00:27]}  Kg8 {[%clk 0:00:11]} 42. Qf4 {[%clk 0:00:27]}  Re2 {[%clk 0:00:10]} 43. Qg4+ {[%clk 0:00:25]} 1-0


[Site "https://www.chess.com"]